{"text_format":"3","workbook":"xlsx","n_sheets":8,"sheets":["Grupa 1 ","Grupa 2 ","Grupa 3 ","Grupa 4","Grupa 5","Grupa 6","Grupa 7","Grupa 8"],"not_rendered":{"defined_names":1},"read":"whole","date_system":"1900"}

{"sheet":"Grupa 1 ","index":0,"n_rows":34,"n_cols":9,"rows_kept":34,"merged":[[16,0,16,1],[16,2,16,7],[18,0,18,7]]}
["FORMULARZ ASORTYMENTOWO - CENOWY             "]
[null,"Załącznik nr 2 do SWZ"]
[{"$nulls":6},"G = D x F",null,"I = G + H"]
[null,null,"Nazwa produktu i producent","Zapotrzebowanie","Jednostka miary","Cena jednostkowa netto (zł) za 1 szt","Wartość netto (zł)","% podatku VAT","Wartość brutto (zł)"]
["I. Grupa 1 – Środki myjące do powierzchni"]
["1.","Zapachowy preparat chemiczny w postaci koncentratu do mycia powierzchni i przedmiotów wodoodpornych (ściany i posadzki (PCV, linoleum, lastriko, gres, terakota) o przyjemnym niedrażniącym i świeżym zapachu. Posiadający właściwości antypoślizgowe, udokumentowane certyfikatem wystawionym w niezależnym laboratorium. Nie pozostawiający smug i zacieków. Zawierający nanocząsteczki krzemu. Stosowany w rozcieńczeniach od 0,5% do 1,5%. Zawierający min.: <5% niejonowych środków powierzchniowo czynnych, technologię Anti-Stone opóźniającą osadzanie się kamienia wodnego na mytych powierzchniach, kompozycje zapachowe. pH koncentratu: 7,0 - 9,0. Gęstość koncentratu 0,978 – 0,990 g/cm3. Przeznaczony do profesjonalnego stosowania w szpitalach. Wielkość opakowania 5 l. Wymagania:  atest PZH, instrukcja stosowania w języku polskim",null,55,"szt",null,{"$f":"'Grupa 1 '!F6*'Grupa 1 '!D6","v":{"v":0,"d":"0.00"}},{"v":0.23,"d":"23.00%"},{"$f":"'Grupa 1 '!G6*(1+'Grupa 1 '!H6)","v":{"v":0,"d":"0.00"}}]
["2.","Preparat z kodowaniem kolorystycznym opakowania w kolorze niebieskim (etykiety lub nakrętki), skoncentrowany, antystatyczny środek do mycia powierzchni wykonanych z tworzyw sztucznych, drewnianych, drewnopodobnych, laminowanych oraz innych powierzchni wodoodpornych, z technologią Anti-Fingerprint  zabezpieczającą powierzchnie przed niepożądanymi odciskami palców i dłoni. Produkt szybko odparowujący zapobiega powstawaniu smug i zacieków. Po użyciu w pomieszczeniach pozostawia przyjemny niedrażniący zapach, stosowany w rozcieńczeniach 0,5-1% na 10 L wody,  zawierający w swoim składzie 5-15% niejonowych środków powierzchniowo czynnych, <5% anionowych środków powierzchniowo czynnych, alkohole, substancje wspomagające, kompozycje zapachowe tj: cinnamal, limonene, benzyl, pH koncentratu: 5-6, gęstość 985-995 kg/m3, opakowania 5l Wymagania: instrukcja stosowania w języku polskim. ",null,50,"szt",null,{"$f":"'Grupa 1 '!F7*'Grupa 1 '!D7","v":{"v":0,"d":"0.00"}},{"v":0.23,"d":"23.00%"},{"$f":"'Grupa 1 '!G7*(1+'Grupa 1 '!H7)","v":{"v":0,"d":"0.00"}}]
["3.","Środek do mycia mocno zabrudzonych szyb a także luster oraz innych powierzchni szkliwionych, powierzchni z tworzyw sztucznych. Usuwa tłuste osady, naloty sadzy z plastikowych i drewnianych ram okiennych, zawierający technologię Anti-Fog dzięki której zapobiega osadzaniu się pary wodnej, nie pozostawiający smug i zacieków, rozcieńczany 1-5%, nie wymagający spłukiwania ani polerowania.  Opakowanie 10l, zawierający <5% anionowych środków powierzchniowo czynnych, alkohole, amoniak, gliceryna. pH środka 10-11, gęstość od 990-1000 kg/m3.  Wymagania: atest PZH, instrukcja stosowania w języku polskim. ",null,2,"szt",null,{"$f":"'Grupa 1 '!F8*'Grupa 1 '!D8","v":{"v":0,"d":"0.00"}},{"v":0.23,"d":"23.00%"},{"$f":"'Grupa 1 '!G8*(1+'Grupa 1 '!H8)","v":{"v":0,"d":"0.00"}}]
["4.","Skoncentrowany środek do profesjonalnego zastosowania z kodowaniem kolorystycznym opakowania w kolorze czerwonym (etykiety lub nakrętki), do gruntownego czyszczenia pomieszczeń i urządzeń sanitarnych i powierzchni odpornych na działanie kwasów. Likwidujący przykre zapachy w pomieszczeniach zawilgoconych. Zawierający technologię Anti-Stone opóźniającą osadzanie się kamienia wodnego na mytych powierzchniach. Bardzo skuteczny w obszarze odkamieniania, udokumentowany współczynnik KLI nie mniejszy niż 2. Stosowany w rozcieńczeniach od 1:10 do 1:50. Zawierający m.in.: 7,5-10% kwasu amidosiarkowego, 7,5-10% kwasu fosforowego, <5% niejonowych środków powierzchniowo czynnych (biodegradowalnych) i inhibitor korozji. Środek nie powinien zawierać APEO, kwasu solnego i aldehydów. pH koncentratu 0-1,5. Gęstość koncentratu 1,085 – 1,095 g/cm3. Wielkość opakowania 5l. Wymagania: atest PZH, instrukcja stosowania w języku polskim.",null,75,"szt",null,{"$f":"'Grupa 1 '!F9*'Grupa 1 '!D9","v":{"v":0,"d":"0.00"}},{"v":0.23,"d":"23.00%"},{"$f":"'Grupa 1 '!G9*(1+'Grupa 1 '!H9)","v":{"v":0,"d":"0.00"}}]
["5.","Preparat żelowy do mycia urządzeń sanitarnych, usuwający osady wapienne, nacieki i osady. Przeznaczony do powierzchni takich jak: toalety, pisuary, bidety, kafelki, umywalki i kabiny prysznicowe. Pozostawiający przyjemny zapach. Neutralizujący nieprzyjemne zapachy. Charakteryzujący się zwiększoną lepkością w granicach 80-100 mPas.. Zawierający <5% anionowych środków powierzchniowo czynnych, <5% kwasu amidosulfonowego. pH środka 1,5-2,5. Gęstość produktu: 1,045 – 1,055 g/m³. Nie zawiera chloru. Opakowanie 1l. Wymagania: atest PZH, instrukcja stosowania w języku polskim.",null,400,"szt",null,{"$f":"'Grupa 1 '!F10*'Grupa 1 '!D10","v":{"v":0,"d":"0.00"}},{"v":0.23,"d":"23.00%"},{"$f":"'Grupa 1 '!G10*(1+'Grupa 1 '!H10)","v":{"v":0,"d":"0.00"}}]
["6.","Środek przeznaczony do gruntownego mycia mocno zabrudzonych powierzchni. Usuwający stary brud, tłuszcze, pasty oraz powłoki polimerowe. Szczególnie zalecany do podłóg kamiennych, z lastriko oraz z PCV. Środek nisko pieniący, typu stripper, stosowany w rozcieńczeniach : usuwanie warstw polimerowych – 0 do 1:10; gruntowne mycie: 1:10 do 1:20. Zawierający <5% anionowych środków powierzchniowo czynnych, <5% niejonowych środków powierzchniowo czynnych. Nie zawierający amoniaku, n-metylpyrolidonu, wodorotlenku sodu ani potasu. Zawiera kompozycje zapachowe pokrywające drażniący zapach chemikaliów. Gęstość 1,000 – 1,010 g/m³, pH koncentratu 10-12. Opakowania 10l zawierające informację na temat pH koncentratu i zalecanych roztworów. Wymagania: atest PZH, instrukcja stosowania w języku polskim.",null,15,"szt",null,{"$f":"'Grupa 1 '!F11*'Grupa 1 '!D11","v":{"v":0,"d":"0.00"}},{"v":0.23,"d":"23.00%"},{"$f":"'Grupa 1 '!G11*(1+'Grupa 1 '!H11)","v":{"v":0,"d":"0.00"}}]
["7.","Dyspersja polimerowa do nabłyszczania podłóg. Zalecana do  linoleum, PCV i lastrika. Posiadająca właściwości antypoślizgowe, udokumentowane certyfikatem wystawionym w niezależnym laboratorium. Odporna na środki dezynfekujące oparte na alkoholu. Wydajność preparatu 70m 2 z 1 litra preparatu. Nie wymagająca polerowania. Skład: minimum 17% polimerów akrylowych oraz 1% wosków polietylenowych, a także jony cynku, które zwiększają trwałość warstwy polimerowej. Gęstość 1.020 – 1.030 g/m³. Dyspersja posiadająca przyjemny zapach uwalniający się również podczas jak i po procesie polimeryzacji. pH preparatu 8,0-9,0. Opakowania 10l zawierające informację na temat pH koncentratu i zalecanych roztworów. Wymagania: instrukcja stosowania w języku polskim.",null,15,"szt",null,{"$f":"'Grupa 1 '!F12*'Grupa 1 '!D12","v":{"v":0,"d":"0.00"}},{"v":0.23,"d":"23.00%"},{"$f":"'Grupa 1 '!G12*(1+'Grupa 1 '!H12)","v":{"v":0,"d":"0.00"}}]
["8.","Preparat przeznaczony do pielęgnacji powierzchni ze stali szlachetnej. Preparat gotowy do użycia, środek w formule spray and wipe. Nabłyszcza i opóźnia proces ponownego osadzania się brudu. Produkt zawierający technologie anti- fingerprint, dzięki której myte powierzchnie są zabezpieczone przed niepożądanymi odciskami palców i dłoni. Gęstość: 0,980 – 1,000 g/m³. PH produktu: 5 – 6. Preparat zawiera w swoim składzie 15-30% fosforanów. Opakowanie 0,6l zawierające informację na temat pH produktu. Wymagania: instrukcja stosowania w języku polskim.",null,10,"szt",null,{"$f":"'Grupa 1 '!F13*'Grupa 1 '!D13","v":{"v":0,"d":"0.00"}},{"v":0.23,"d":"23.00%"},{"$f":"'Grupa 1 '!G13*(1+'Grupa 1 '!H13)","v":{"v":0,"d":"0.00"}}]
[{"$nulls":3},"RAZEM",null,null,{"$f":"SUM(G6:G13)","v":{"v":0,"d":"0.00"}},null,{"$f":"SUM(I6:I13)","v":{"v":0,"d":"0.00"}}]
[]
[]
["1. Cena brutto oferty (słownie): "]
[]
[]
[]
[]
[null,"Podpis składany jest w formie elektronicznej."]
[]
[null,"Grupa 1 – Środki myjące do powierzchni"]
[null,"Uwaga!"]
["1.","Wykonawca w ramach dostawy asortymentu z grupy 1, dostarczy Zamawiającemu, pompki dozujące do pojemników 5 litrowych (gwinty pompek pasujące do opakowań 5 l lub 10l) wraz z dozymetrem do dozowania środków myjących na każdy oddział wraz z instrukcjami stosowania (plan higieny) (w trwałym wykonaniu do przyklejenia) w ilościach:"]
[null,"- instrukcje stosowania  - 15 szt"]
[null,"- pompki do dozowania – 60 szt"]
[null,"- butelki 0,6L ze spryskiwaczem – 120 szt"]
[null,"- niezmywalne oryginalne etykiety na butelki ze spryskiwaczem – 120 szt (po 40 szt z stosowanych środków)"]
[null,"(Pompki dozujące dostosowane do pojemników 5 - 10 litrowych, kompatybilne ze pojemnikami do środków chemicznych z kodowaniem kolorami (poz1, poz2, poz3, poz4),  z ustaloną  i czytelna dozą preparatu)"]
[" ","Wykonawca w ramach dostawy asortymentu z grupy 1 dla pozycji 1, 2, 3, 4, wyposaży Zamawiającego w stacjonarne, przepływowe urządzenie do dozowania preparatów, montowane na ścianie, z pojemnikiem na ustawienie pojemników z preparatami nierozcieńczonymi, podłączonymi do instalacji zimnej wody wraz zaworem odcinającym i zaworem zwrotnym (przeciwskażeniowym), umożliwiającym przygotowanie roztworów o zadanych stężeniach – pomieszczenie porządkowe szpitala (dozowanie 4 rodzajów środków).  "]
["3.","Zamawiający wymaga wdrożenia przez Wykonawcę pełnego szkolenia z zakresu stosowania środków myjących w 2 terminach uzgodnionych z Zamawiającym oraz na wyraźną prośbę w przypadku problemów wynikłych podczas stosowania środków przez personel szpitala."]
["4.","Grupa 1 – Środki myjące do powierzchni – środki profesjonalne, do stosowania w szpitalach, powinny być kompatybilne ze sobą i pochodzić od jednego producenta."]

{"sheet":"Grupa 2 ","index":1,"n_rows":22,"n_cols":8,"rows_kept":22,"merged":[[0,0,0,7],[1,0,1,7],[4,0,4,7],[15,0,15,1],[15,2,15,7],[17,0,17,7]]}
["FORMULARZ ASORTYMENTOWO - CENOWY             "]
["Załącznik nr 2 do SWZ"]
[{"$nulls":5},"G = D x F",null,"I = G + H"]
[null,null,"Zapotrzebowanie","Jednostka miary","Cena jednostkowa netto (zł) za 1 szt","Wartość netto (zł)","% podatku VAT","Wartość brutto (zł)"]
[" Grupa 2 – Środki czystości"]
["1.","Detergent do prania  w procesie automatycznym, środek piorąco - dezynfekujący do prania i chemiczno – termicznej dezynfekcji mopów. Opakowanie 15kg. Wymagania: instrukcja stosowania w języku polskim.",3,"szt",null,{"$f":"'Grupa 2 '!E6*'Grupa 2 '!C6","v":{"v":0,"d":"0.00"}},{"v":0.23,"d":"23.00%"},{"$f":"'Grupa 2 '!F6*(1+'Grupa 2 '!G6)","v":{"v":0,"d":"0.00"}}]
["2.","Mleczko do czyszczenia powierzchni ceramicznych, chromowanych i z tworzyw sztucznych., metalowych, usuwa uporczywy brud – tłuszcz, rdzę, Nie rysuje czyszczonych powierzchni. Opakowanie 500ml. Wymagania : instrukcja stosowania w języku polskim.",40,"szt",null,{"$f":"'Grupa 2 '!E7*'Grupa 2 '!C7","v":{"v":0,"d":"0.00"}},{"v":0.23,"d":"23.00%"},{"$f":"'Grupa 2 '!F7*(1+'Grupa 2 '!G7)","v":{"v":0,"d":"0.00"}}]
["3.","Środek do mycia rąk, usuwający smary, farby i inne trudno usuwalne zanieczyszczenia, zawierający anionowe oraz niejonowe środki powierzchniowo czynne 5% lub więcej ale mniej niż 15%, a także kompozycje zapachowe. Opakowanie 500g. Wymagania instrukcja stosowania w języku polskim.",5,"szt",null,{"$f":"'Grupa 2 '!E8*'Grupa 2 '!C8","v":{"v":0,"d":"0.00"}},{"v":0.23,"d":"23.00%"},{"$f":"'Grupa 2 '!F8*(1+'Grupa 2 '!G8)","v":{"v":0,"d":"0.00"}}]
["4.","Środek do czyszczenia i pielęgnacji mebli z drewna i płyty meblowej w aerozolu, pozostawiający niedrażniący zapach i trwały połysk, antystatyczny. Opakowanie min 0,4l. Wymagania: instrukcja stosowania w języku polskim.",10,"szt",null,{"$f":"'Grupa 2 '!E9*'Grupa 2 '!C9","v":{"v":0,"d":"0.00"}},{"v":0.23,"d":"23.00%"},{"$f":"'Grupa 2 '!F9*(1+'Grupa 2 '!G9)","v":{"v":0,"d":"0.00"}}]
["5.","Uniwersalny detergentowy środek używany do mycia ręcznego naczyń, koncentrat dobrze rozpuszczalny w wodzie, nie pozostawiający zacieków na mytych powierzchniach, delikatny dla rąk, neutralny dla środowiska naturalnego. Opakowanie 5L. Wymagania: instrukcja stosowania w języku polskim.",14,"szt",null,{"$f":"'Grupa 2 '!E10*'Grupa 2 '!C10","v":{"v":0,"d":"0.00"}},{"v":0.23,"d":"23.00%"},{"$f":"'Grupa 2 '!F10*(1+'Grupa 2 '!G10)","v":{"v":0,"d":"0.00"}}]
["6.","Uniwersalny detergentowy środek używany do mycia ręcznego naczyń, koncentrat dobrze rozpuszczalny w wodzie, nie pozostawiający zacieków na mytych powierzchniach, delikatny dla rąk, neutralny dla środowiska naturalnego. Opakowanie 1L. Wymagania: instrukcja stosowania w języku polskim.",18,"szt",null,{"$f":"'Grupa 2 '!E11*'Grupa 2 '!C11","v":{"v":0,"d":"0.00"}},{"v":0.23,"d":"23.00%"},{"$f":"'Grupa 2 '!F11*(1+'Grupa 2 '!G11)","v":{"v":0,"d":"0.00"}}]
["7.","Środek do usuwania pleśni na ścianach, czarnych nalotów w szczelinach, w fugach, oknach, łazienkach, odpowiada za skuteczną likwidację pleśni, alg oraz grzybów, skuteczny w działaniu, działa grzybobójczo i dezynfekcyjne. Opakowanie butelka 0,5L z atomizerem. Wymagania: instrukcja stosowania w języku polskim.",50,"szt",null,{"$f":"'Grupa 2 '!E12*'Grupa 2 '!C12","v":{"v":0,"d":"0.00"}},{"v":0.23,"d":"23.00%"},{"$f":"'Grupa 2 '!F12*(1+'Grupa 2 '!G12)","v":{"v":0,"d":"0.00"}}]
["8.","Sól do zmywarek gruboziarnista. Opakowanie 2kg.",12,"szt",null,{"$f":"'Grupa 2 '!E13*'Grupa 2 '!C13","v":{"v":0,"d":"0.00"}},{"v":0.23,"d":"23.00%"},{"$f":"'Grupa 2 '!F13*(1+'Grupa 2 '!G13)","v":{"v":0,"d":"0.00"}}]
[null,null,"RAZEM",null,null,{"$f":"SUM(F6:F13)","v":{"v":0,"d":"0.00"}},null,{"$f":"SUM(H6:H13)","v":{"v":0,"d":"0.00"}}]
[]
["1. Cena brutto oferty (słownie): ",null,"…………………………………………………………………………………."]
[]
[]
[]
[]
[]
[null,"Podpis składany jest w formie elektronicznej."]

{"sheet":"Grupa 3 ","index":2,"n_rows":20,"n_cols":8,"rows_kept":20,"merged":[[1,0,1,7],[4,0,4,7],[13,2,13,4],[16,0,16,1],[16,2,16,7],[18,0,18,7]]}
["FORMULARZ ASORTYMENTOWO - CENOWY             "]
[" Załącznik nr 2 do SWZ"]
[{"$nulls":5},"F = C x E",null,"H = F + G"]
[null,null,"Zapotrzebowanie","Jednostka miary","Cena jednostkowa netto (zł) za 1 szt","Wartość netto (zł)","% podatku VAT","Wartość brutto (zł)"]
[" Grupa 3 – Ścierki i pady"]
["1.","Ścierka z mikrofazy czerwona 30 cm x30 cm, wytrzymałość 300 prań, ogólnego zastosowania- do ścierka z mikrofazy mycia wszelkich powierzchni zmywalnych, do użycia na mokro i na sucho, nie farbująca, etykieta w języku polskim.",600,"szt",null,{"$f":"'Grupa 3 '!E6*'Grupa 3 '!C6","v":{"v":0,"d":"0.00"}},{"v":0.23,"d":"23.00%"},{"$f":"'Grupa 3 '!F6*(1+'Grupa 3 '!G6)","v":{"v":0,"d":"0.00"}}]
["2.","Ścierka z mikrofazy niebieska 30 cm x30 cm, wytrzymałość 300 prań, ogólnego zastosowania- do mycia wszelkich powierzchni zmywalnych, do użycia na mokro i na sucho, nie farbująca, etykieta w języku polskim.",600,"szt",null,{"$f":"'Grupa 3 '!E7*'Grupa 3 '!C7","v":{"v":0,"d":"0.00"}},{"v":0.23,"d":"23.00%"},{"$f":"'Grupa 3 '!F7*(1+'Grupa 3 '!G7)","v":{"v":0,"d":"0.00"}}]
["3.","Ścierka z mikrofazy żółta 30 cm x30 cm, wytrzymałość 300 prań, ogólnego zastosowania- do mycia wszelkich powierzchni zmywalnych, do użycia na mokro i na sucho, nie farbująca, etykieta w języku polskim.",600,"szt",null,{"$f":"'Grupa 3 '!E8*'Grupa 3 '!C8","v":{"v":0,"d":"0.00"}},{"v":0.23,"d":"23.00%"},{"$f":"'Grupa 3 '!F8*(1+'Grupa 3 '!G8)","v":{"v":0,"d":"0.00"}}]
["4.","Ścierka do czyszczenia szyb i luster z mikrowłókien impregnowana PVA (alkohol poliwinylowy) – kolor zielony, materiał - 80 % Poliester 20 % Poliamid,  powłoka - 100 % Alkohol Poliwinylowy, gęstość 245 g/m², grubość 1,45 mm, absorpcja wody w stanie suchym 550 %,\nRozmiar min 35x38cm, nie farbująca, etykieta w języku polskim.",100,"szt",null,{"$f":"'Grupa 3 '!E9*'Grupa 3 '!C9","v":{"v":0,"d":"0.00"}},{"v":0.23,"d":"23.00%"},{"$f":"'Grupa 3 '!F9*(1+'Grupa 3 '!G9)","v":{"v":0,"d":"0.00"}}]
["5.","PAD ETC „16” biały – polerujący, etykieta w języku polskim.",5,"szt",null,{"$f":"'Grupa 3 '!E10*'Grupa 3 '!C10","v":{"v":0,"d":"0.00"}},{"v":0.23,"d":"23.00%"},{"$f":"'Grupa 3 '!F10*(1+'Grupa 3 '!G10)","v":{"v":0,"d":"0.00"}}]
["6.","PAD ETC ”19” biały, etykieta w języku polskim.",50,"szt",null,{"$f":"'Grupa 3 '!E11*'Grupa 3 '!C11","v":{"v":0,"d":"0.00"}},{"v":0.23,"d":"23.00%"},{"$f":"'Grupa 3 '!F11*(1+'Grupa 3 '!G11)","v":{"v":0,"d":"0.00"}}]
["7.","PAD ETC ”19” czerwony, etykieta w języku polskim.",15,"szt",null,{"$f":"'Grupa 3 '!E12*'Grupa 3 '!C12","v":{"v":0,"d":"0.00"}},{"v":0.23,"d":"23.00%"},{"$f":"'Grupa 3 '!F12*(1+'Grupa 3 '!G12)","v":{"v":0,"d":"0.00"}}]
["8.","PAD ETC ”19” brązowy, etykieta w języku polskim.",15,"szt",null,{"$f":"'Grupa 3 '!E13*'Grupa 3 '!C13","v":{"v":0,"d":"0.00"}},{"v":0.23,"d":"23.00%"},{"$f":"'Grupa 3 '!F13*(1+'Grupa 3 '!G13)","v":{"v":0,"d":"0.00"}}]
[null,null,"RAZEM",null,null,{"$f":"SUM(F6:F13)","v":{"v":0,"d":"0.00"}},null,{"$f":"SUM(H6:H13)","v":{"v":0,"d":"0.00"}}]
[]
[]
["1. Cena brutto oferty (słownie): ",null,"…………………………………………………………………………………."]
[]
[]
[null,"Podpis składany jest w formie elektronicznej."]

{"sheet":"Grupa 4","index":3,"n_rows":34,"n_cols":8,"rows_kept":34,"merged":[[0,0,0,7],[1,0,1,7],[4,0,4,7],[14,0,14,1],[14,2,14,7],[16,0,16,7]]}
["FORMULARZ ASORTYMENTOWO - CENOWY             "]
[" Załącznik nr 2 do SWZ"]
[{"$nulls":5},"G = D x F",null,"I = G + H"]
[null,null,"Zapotrzebowanie","Jednostka miary","Cena jednostkowa netto (zł) za 1 szt","Wartość netto (zł)","% podatku VAT","Wartość brutto (zł)"]
[" Grupa 4 – Ręczniki papierowe, papier toaletowy, mydło"]
["1.","Ręcznik papierowy w roli, nieperforowany o wymiarach: szer.20-21 cm, dł. min 250m, średnica 19 cm, gramatura min 30g/m2, stopień białości min. 80 %, jednowarstwowy, wykonany z celulozy, każda rolka zapakowana  w oryginalnym opakowaniu producenta wraz z oryginalnym plastikowym  plugiem umożliwiający montaż oraz  instrukcją montażu\nPapier posiada  certyfikat  kontaktu z żywnością  oraz jest  kompatybilny z systemem dozowania, który przy każdym dozowaniu porcjuje pojedyncze odcinki papieru \no dł. 24 - 26 cm. Produkt dopuszczony do kontaktu z żywnością. Etykieta w języku polskim. Ręcznik dedykowany do dozownika TORK Matic H1 firmy Tork. Kompatybilność dostarczonego dozownika z oferowanym wkładem (op. - 6 szt.)",220,"op",null,{"$f":"$C6*$E6","v":{"v":0,"d":"0.00"}},{"v":0.23,"d":"23.00%"},{"$f":"$F6*(1+$G6)","v":{"v":0,"d":"0.00"}}]
["2.","Ręcznik papierowy w roli, o wymiarach: szer. 19-20 cm, dł. min 300m , średnica 19-20 cm, gramatura min 20 g/m2, stopień białości min 75%, jednowarstwowy, doza o dł. 34-35 cm, gilza wykonana z naciętej  tektury umożliwiającej wyciągnięcie jej jednym ruchem  ręki z roli, rolki zapakowane w oryginalne opakowanie producenta,Papier posiada certyfikat  kontaktu z żywnością oraz jest kompatybilny z systemem dozowania, który przy każdym dozowaniu porcjuje pojedyncze odcinki papieru o długości 34-36 cm. Produkt dopuszczony do kontaktu z żywnością.  Etykieta w języku polskim. Ręcznik dedykowany do dozownika Tork Reflex M4 firmy Tork. Kompatybilność dostarczanego dozownika z oferowanym wkładem . (op. - 6 szt.)",390,"op",null,{"v":0,"d":"0.00"},{"v":0.23,"d":"23.00%"},{"v":0,"d":"0.00"}]
["3.","Mydło przezroczyste w spray o pojemności 1000 ml,  lekko perfumowane, łagodne nie podrażniające. Jednorazowa i kurcząca się butelka wraz ze zużyciem produktu. Wkład pasujący do dozownika uruchamiany jedną ręką przy użyciu klawisza. Etykieta w języku polskim. Kompatybilność dozownika z oferowanym wkładem i wydajnością min. 1500 dawek (op. - 6 szt.)",40,"op",null,{"v":0,"d":"0.00"},{"v":0.23,"d":"23.00%"},{"v":0,"d":"0.00"}]
["4.","Mydło w płynie o pojemności 1000 ml, nie podrażniające skóry, bezwonne, o dobrych właściwościach myjących. Jednorazowa  i kurcząca się butelka wraz ze zużyciem produktu. Wkład pasujący do dozownika uruchamiany jedna ręką przy użyciu klawisza i wydajności min. 1500 dawek, Norma PN EN 1499. Etykieta w języku polskim. Kompatybilność dozownika z oferowanym wkładem i wydajnością min. 1000 dawek (op. - 6 szt.)",60,"op",null,{"v":0,"d":"0.00"},{"v":0.23,"d":"23.00%"},{"v":0,"d":"0.00"}]
["5.","Papier toaletowy szary jednowarstwowy, listkowany, szerokość min 92mm, waga rolki min 90 g, długość w rolki min 15mb. Etykieta w języku polskim. (op. - 8 szt.)",700,"op",null,{"v":0,"d":"0.00"},{"v":0.23,"d":"23.00%"},{"v":0,"d":"0.00"}]
["6.","Papier Jumbo jednowarstwowy, makulaturowy, szary, na rolce, średnica rolki 24-25 cm, długość min 210 mb. Etykieta w języku polskim. (op. - 6 szt.)",60,"op",null,{"v":0,"d":"0.00"},{"v":0.23,"d":"23.00%"},{"v":0,"d":"0.00"}]
["7.","Papier toaletowy kompatybilny z dozownikami podawania papieru (ad Poz. 7), długość rolki min 180m, dozowany w odcinkach min 17cm, szerokość min. 13cm, średnica kompatybilna z dozownikiem, 2-warstwowy (op. - 6 szt.)",85,"op",null,{"v":0,"d":"0.00"},{"v":0.23,"d":"23.00%"},{"v":0,"d":"0.00"}]
[null,null,"RAZEM",null,null,{"$f":"SUM(F6:F12)","v":{"v":0,"d":"0.00"}},null,{"$f":"SUM(H6:H12)","v":{"v":0,"d":"0.00"}}]
[]
["1. Cena brutto oferty (słownie): ",null,"…………………………………………………………………………………."]
[null,"Podpis składany jest w formie elektronicznej."]
[]
[]
[]
[]
[]
[]
[null,"Uwaga! Wykonawca, w ramach dostawy asortymentu z Grupy 4, poz. 1,2,3 i 4 wyposaży Zamawiającego oraz zamontuje dozowniki (dozowniki po ustaniu umowy staną się własnością Zamawiającego) :"]
[]
[null,"Poz.1.  "]
[null,"10 szt. - Dozowników  naściennych wykonanych z tworzywa ABS  w kolorze białym, zamykane na kluczyk, system dozowania papieru każdorazowo tylko jednego odcinka o dł.24 - 26 cm "]
[null,"Poz.2. "]
[null,"10 szt. – Dozowników naściennych wykonanych z ABS w kolorze białym, zamykane na kluczyk, centralne dozowanie  każdorazowo tylko jednego odcinka o dł. 34-36 cm"]
[null,"Poz.3. "]
[null,"10 szt. - Dozowników naściennych wykonanych z ABS w kolorze białym, bez trudno dostępnych przestrzeni umożliwiających łatwe mycie, zamykane na kluczyk, dozowanie za pomocą  klawisza przy użyciu jednej ręki – łokciowe lub bezdotykowe"]
[null,"Poz.4."]
[null,"10 szt. -  Dozowników naściennych  wykonanych z ABS  w białym kolorze, bez trudno dostępnych przestrzeni umożliwiających łatwe mycie, zamykane na kluczyk, dozowanie za pomocą  klawisza przy użyciu jednej ręki"]
[null,"Poz.7."]
[null,"29 szt. -  Dozowników naściennych  wykonanych z ABS  w białym kolorze, bez trudno dostępnych przestrzeni umożliwiających łatwe mycie, zamykane na kluczyk, możliwość dozowania centralnego papieru toaletowego"]

{"sheet":"Grupa 5","index":4,"n_rows":17,"n_cols":8,"rows_kept":17,"merged":[[1,0,1,7],[4,0,4,7],[10,2,10,4],[13,0,13,1],[13,2,13,7],[15,0,15,7]]}
["FORMULARZ ASORTYMENTOWO - CENOWY             "]
[" Załącznik nr 2 do SWZ"]
[{"$nulls":5},"F = C x E",null,"H = F + G"]
[null,null,"Zapotrzebowanie","Jednostka miary","Cena jednostkowa netto (zł) za 1 szt","Wartość netto (zł)","% podatku VAT","Wartość brutto (zł)"]
[" Grupa 5 – Worki LDPE"]
["1.","Worki LDPE czarne 120 l. – 70 cm x 110 cm (op. - 25 szt.)",50,"op",null,{"$f":"$C6*$E6","v":{"v":0,"d":"0.00"}},{"v":0.23,"d":"23.00%"},{"$f":"$F6*(1+$G6)","v":{"v":0,"d":"0.00"}}]
["2.","Worki LDPE czerwone 120 l. – 70 cm X 110 cm (op. - 25 szt.)",2000,"op",null,{"$f":"$C7*$E7","v":{"v":0,"d":"0.00"}},{"v":0.23,"d":"23.00%"},{"$f":"$F7*(1+$G7)","v":{"v":0,"d":"0.00"}}]
["3.","Worki LDPE niebieskie 120 l. – 70 cm x 110 cm (op. - 25 szt.)",1300,"op",null,{"$f":"$C8*$E8","v":{"v":0,"d":"0.00"}},{"v":0.23,"d":"23.00%"},{"$f":"$F8*(1+$G8)","v":{"v":0,"d":"0.00"}}]
["4.","Worki LDPE niebieskie 68 cm x 65 cm (op. - 25 szt.)",3000,"op",null,{"$f":"$C9*$E9","v":{"v":0,"d":"0.00"}},{"v":0.23,"d":"23.00%"},{"$f":"$F9*(1+$G9)","v":{"v":0,"d":"0.00"}}]
["5.","Worki LDPE czerwone 68 cm x 65 cm (op. - 25 szt.)",3200,"op",null,{"$f":"$C10*$E10","v":{"v":0,"d":"0.00"}},{"v":0.23,"d":"23.00%"},{"$f":"$F10*(1+$G10)","v":{"v":0,"d":"0.00"}}]
[null,null,"RAZEM",null,null,{"$f":"SUM(F6:F10)","v":{"v":0,"d":"0.00"}},null,{"$f":"SUM(H6:H10)","v":{"v":0,"d":"0.00"}}]
[]
[]
["1. Cena brutto oferty (słownie): ",null,"…………………………………………………………………………………."]
[]
[]
[null,"Podpis składany jest w formie elektronicznej."]

{"sheet":"Grupa 6","index":5,"n_rows":13,"n_cols":8,"rows_kept":13,"merged":[[0,0,0,7],[1,0,1,7],[4,0,4,7],[9,0,9,1],[9,2,9,7],[11,0,11,7]]}
["FORMULARZ ASORTYMENTOWO - CENOWY             "]
["Załącznik nr 2 do SWZ"]
[{"$nulls":5},"G = D x F",null,"I = G + H"]
[null,null,"Zapotrzebowanie","Jednostka miary","Cena jednostkowa netto (zł) za 1 szt","Wartość netto (zł)","% podatku VAT","Wartość brutto (zł)"]
[" Grupa 6 – Środki spożywcze"]
["1. ","Kwasek cytrynowy spożywczy. Opakowanie 1kg",25,"szt",null,{"$f":"$C6*$E6","v":{"v":0,"d":"0.00"}},{"v":0.23,"d":"23.00%"},{"$f":"$F6*(1+$G6)","v":{"v":0,"d":"0.00"}}]
["2. ","Kwasek cytrynowy spożywczy. Opakowanie 5 kg ",5,"szt",null,{"$f":"$C7*$E7","v":{"v":0,"d":"0.00"}},{"v":0.23,"d":"23.00%"},{"$f":"$F7*(1+$G7)","v":{"v":0,"d":"0.00"}}]
[null,null,"RAZEM",null,null,{"$f":"SUM(F6:F7)","v":{"v":0,"d":"0.00"}},null,{"$f":"SUM(H6:H7)","v":{"v":0,"d":"0.00"}}]
[]
["1. Cena brutto oferty (słownie): ",null,"…………………………………………………………………………………."]
[]
[]
[null,"Podpis składany jest w formie elektronicznej."]

{"sheet":"Grupa 7","index":6,"n_rows":12,"n_cols":8,"rows_kept":12,"merged":[[0,0,0,7],[1,0,1,7],[4,0,4,7],[8,0,8,1],[8,2,8,7],[10,0,10,7]]}
["FORMULARZ ASORTYMENTOWO - CENOWY             "]
["Załącznik nr 2 do SWZ"]
[{"$nulls":5},"G = D x F",null,"I = G + H"]
[null,null,"Zapotrzebowanie","Jednostka miary","Cena jednostkowa netto (zł) za 1 szt","Wartość netto (zł)","% podatku VAT","Wartość brutto (zł)"]
[" Grupa 6 – Środki specjalne"]
["1.","Gotowy do u­żytku roztwór myjący do gruntownego usuwania resztek alginianu i cementu oraz plam z cynku i eugenolu na wyposażeniu, narzędziach i skórze. Opakowanie  0,5 l ",8,"szt",null,{"$f":"'Grupa 7'!E6*'Grupa 7'!C6","v":{"v":0,"d":"0.00"}},{"v":0.23,"d":"23.00%"},{"$f":"'Grupa 7'!F6*(1+'Grupa 7'!G6)","v":{"v":0,"d":"0.00"}}]
[null,null,"RAZEM",null,null,{"$f":"SUM(F6:F6)","v":{"v":0,"d":"0.00"}},null,{"$f":"SUM(H6:H6)","v":{"v":0,"d":"0.00"}}]
[]
["1. Cena brutto oferty (słownie): ",null,"…………………………………………………………………………………."]
[]
[]
[null,"Podpis składany jest w formie elektronicznej."]

{"sheet":"Grupa 8","index":7,"n_rows":16,"n_cols":8,"rows_kept":16,"merged":[[0,0,0,7],[1,0,1,7],[4,0,4,7],[13,0,13,1],[13,2,13,7]]}
["FORMULARZ ASORTYMENTOWO - CENOWY             "]
["Załącznik nr 2 do SWZ"]
[{"$nulls":5},"G = D x F",null,"I = G + H"]
[null,null,"Zapotrzebowanie","Jednostka miary","Cena jednostkowa netto (zł) za 1 szt","Wartość netto (zł)","% podatku VAT","Wartość brutto (zł)"]
[" Grupa 8 – Akcesoria"]
["1.","Komplet do czyszczenia WC – szczotka + pojemnik. Średnica pojemnika min 11cm, szczotka wysokość min 36cm, kolor czarny lub odcienie białego ",15,"szt",null,{"$f":"$C6*$E6","v":{"v":0,"d":"0.00"}},{"v":0.23,"d":"23.00%"},{"$f":"$F6*(1+$G6)","v":{"v":0,"d":"0.00"}}]
["2.","Szufelka z gumką i zmiotką – clip",15,"szt",null,{"v":0,"d":"0.00"},{"v":0.23,"d":"23.00%"},{"v":0,"d":"0.00"}]
["3.","Włóknina biała na rolce, wytrzymała, chłonna, dziurkowana, 300 odcinków (+/- 10),rozmiar listka minimum 32x37 cm, skład 30%PES, 70% VISC, etykieta w języku polskim.",25,"szt",null,{"v":0,"d":"0.00"},{"v":0.23,"d":"23.00%"},{"v":0,"d":"0.00"}]
["4.","MOP  40 cm z zamkniętymi frędzlami do codziennego mycia powierzchni  wykonany z poliestru oraz bawełny, waga suchego max 140g, odporność na pranie w temp 95oC, suszenia 110oC,posiadający 2 kieszenie do mocowania na uchwycie, gwarancja min 250 cykli prań, odporny na działanie środków chemicznych, dobrze wchłaniający wodę, nie pylący,  nadający się do dezynfekcji, etykieta w języku polskim.",300,"szt",null,{"v":0,"d":"0.00"},{"v":0.23,"d":"23.00%"},{"v":0,"d":"0.00"}]
["5.","MOP sznurkowy okrągły, waga min 150g, z gwintem do kija, etykieta w języku polskim.",15,"szt",null,{"v":0,"d":"0.00"},{"v":0.23,"d":"23.00%"},{"v":0,"d":"0.00"}]
["6.","Kij do mopa odporny na działanie środków dezynfekcyjnych z gwintem o długości min 130 cm (metalowy powlekany tworzywem)(z gwintem do mopa sznurkowego z poz 5), etykieta w języku polskim.",5,"szt",null,{"v":0,"d":"0.00"},{"v":0.23,"d":"23.00%"},{"v":0,"d":"0.00"}]
[null,null,"RAZEM",null,null,{"$f":"SUM(F6:F11)","v":{"v":0,"d":"0.00"}},null,{"$f":"SUM(H6:H11)","v":{"v":0,"d":"0.00"}}]
[]
["1. Cena brutto oferty (słownie): ",null,"…………………………………………………………………………………."]
[]
["Podpis składany jest w formie elektronicznej."]